{"text_format":"1","workbook":"xlsx","n_sheets":7,"sheets":["Códigos","Formalizacion_semillero","Plan de trabajo anual semillero","Asistencia_Fase1","Asistencia_Fase2","Gestion_Fase3","INFORME SEMILLERO"],"not_rendered":{"charts":0,"images":2,"macros":1,"external_links":0,"defined_names":25,"comments":0,"pivot_tables":0},"unopened":[],"bounds":{"document_bytes":16777216,"sheet_cells":100000,"rows_first":2000,"rows_last":500,"rows_between":2000,"halvings":0,"cell_chars":16384,"cell_head_chars":4096},"cells_cut":0,"cells_raw":0,"read":"whole","date_system":"1900"}

{"sheet":"Códigos","index":0,"n_rows":29,"n_cols":18,"rows_kept":29,"cut":false,"hidden":true,"merged":[]}
["Formalización del semillero"]
["Facultad","Campus","Grupo de Investigación","Objetivos de Desarrollo Sostenible","Fases de Formación","Tipo de identificación","Estado","Semestre","Actividades de investigación","Productos asociados a cada tipología","Estado del producto","Actividad se realizó",null,null,"Tipología de productos según MINCIENCIAS"]
["Centro de Estudios Tecnológicos","Bogotá","BIOGEN","Acción por el clima","1. Básica","T.I","Activo","2020A",null,"Artículos de investigación A1, A2, B y C","Sin desarrollar","SÍ","Tipología","Generación_de_nuevo_conocimiento","Desarrollo_tecnológico_e_innovación","Apropiación_social_del_conocimiento","Formación_de_Recurso_Humano_para_la_CTeI","Otra"]
["Ciencias de la Educación","Bucaramanga","BIOMOL","Agual limpia y saneamiento","2. Especializada","C.C","Inactivo","2020B",null,"Artículos de investigación D","En desarrollo","NO","Generación_de_nuevo_conocimiento","Artículos de investigación A1, A2, B y C","Productos tecnológicos certificados o validados","Participación ciudadana en CTeI y creación","Dirección de Tesis de Doctorado","NA"]
["Ciencias de la Salud","Cúcuta","CIBAS","Alianza para lograr los objetivos","3. Avanzada","Pasaporte",null,"2021A",null,"Notas científicas","Finalizado",null,"Desarrollo_tecnológico_e_innovación","Artículos de investigación D","Productos empresariales","Estrategias pedagógicas para el fomento de la CTeI","Dirección de Trabajo de grado de maestría"]
["Ciencias Exactas, Naturales y Agropecuarias","Valledupar","CIEMPIÉS","Ciudades y comunidades sostenibles",null,null,null,"2021B",null,"Libros resultados de investigación",null,null,"Apropiación_social_del_conocimiento","Notas científicas","Regulaciones, normas, reglamentos o legislaciones","Comunicación social del conocimiento","Dirección de Trabajo de grado de pregrado"]
["Ciencias Sociales, Políticas y Humanas",null,"CIENCIAUDES","Educación de calidad",null,null,null,null,null,"Capítulos en libro resultado de investigación",null,null,"Formación_de_Recurso_Humano_para_la_CTeI","Libros resultados de investigación","Conceptos técnicos e informes técnicos","Circulación de conocimiento especializado (incluye eventos científicos)","Proyectos de Investigación y Desarrollo"]
["Económicas, Administrativas y Contables",null,"CIMA","Energía asequible y no contaminante",null,null,null,null,null,"Productos tecnológicos patentados o en proceso de concesión de la patente",null,null,"Otra","Capítulos en libro resultado de investigación","Registros de Acuerdos de licencia para la explotación de obras protegidas por derecho de autor",null,"Proyectos de Investigación-Creación"]
["Ingenierías",null,"CIMEP","Fin de la pobreza",null,null,null,null,null,"Variedades vegetales, nuevas razas animales y poblaciones mejoradas de razas pecuarias",null,null,null,"Productos tecnológicos patentados o en proceso de concesión de la patente",null,null,"Proyectos de Investigación, Desarrollo e Innovación (I+D+i)"]
[null,null,"CLINIUDES","Hambre cero",null,null,null,null,null,"Obras o productos de investigación-creación en Artes, Arquitectura y Diseño",null,null,null,"Variedades vegetales, nuevas razas animales y poblaciones mejoradas de razas pecuarias",null,null,"Proyecto de extensión y responsabilidad social en CTeI"]
[null,null,"CRISÁLIDA","Igualdad de género",null,null,null,null,null,"Productos tecnológicos certificados o validados",null,null,null,"Obras o productos de investigación-creación en Artes, Arquitectura y Diseño",null,null,"Apoyo a creación de programas o cursos de formación de investigadores"]
[null,null,"ENTROPÍA","Industria, innovación e infraestructura",null,null,null,null,null,"Productos empresariales"]
[null,null,"ESTUDIOS SOCIO HUMANÍSTICOS","Paz, justicia e instituciones sólidas",null,null,null,null,null,"Regulaciones, normas, reglamentos o legislaciones"]
[null,null,"EUREKA UDES","Producción y consumo responsable",null,null,null,null,null,"Conceptos técnicos e informes técnicos"]
[null,null,"EVEREST","Reducción de las desigualdades",null,null,null,null,null,"Registros de Acuerdos de licencia para la explotación de obras protegidas por derecho de autor"]
[null,null,"FENIX UDES","Salud y bienestar",null,null,null,null,null,"Participación ciudadana en CTeI y creación"]
[null,null,"FISIOTERAPIA INTEGRAL","Trabajo decente y crecimiento económico",null,null,null,null,null,"Estrategias pedagógicas para el fomento de la CTeI"]
[null,null,"GAIA UDES","Vida de ecosistemas terrestres",null,null,null,null,null,"Comunicación social del conocimiento"]
[null,null,"GEDETEC","Vida submarina",null,null,null,null,null,"Circulación de conocimiento especializado (incluye eventos científicos)"]
[null,null,"GICA UDES",null,null,null,null,null,null,"Dirección de Tesis de Doctorado"]
[null,null,"GISOFT",null,null,null,null,null,null,"Dirección de Trabajo de grado de maestría"]
[null,null,"GRAVATE",null,null,null,null,null,null,"Dirección de Trabajo de grado de pregrado"]
[null,null,"GUANE",null,null,null,null,null,null,"Proyectos de Investigación y Desarrollo"]
[null,null,"JURISPRUDENCIA Y ACTIVISMO CONSTITUCIONAL",null,null,null,null,null,null,"Proyectos de Investigación-Creación"]
[null,null,"MICROBIOTA",null,null,null,null,null,null,"Proyectos de Investigación, Desarrollo e Innovación (I+D+i)"]
[null,null,"NEUROCIENCIAS UDES",null,null,null,null,null,null,"Proyecto de extensión y responsabilidad social en CTeI"]
[null,null,"NUEVAS TECNOLOGÍAS UDES",null,null,null,null,null,null,"Apoyo a creación de programas o cursos de formación de investigadores"]
[null,null,"SALUD COMUNIDUDES"]
[null,null,"SALUD PÚBLICA UDES"]

{"sheet":"Formalizacion_semillero","index":1,"n_rows":35,"n_cols":11,"rows_kept":35,"cut":false,"hidden":false,"merged":[[10,0,10,5],[10,6,10,10],[5,0,5,1],[6,0,6,1],[9,0,9,1],[9,2,9,10],[5,7,5,8],[6,7,6,8],[5,6,6,6],[5,10,6,10],[0,9,0,10],[1,9,1,10],[3,7,3,9],[4,0,4,10],[3,3,3,4],[2,0,2,10],[0,3,0,8],[1,3,1,8],[3,0,3,2],[0,0,1,2],[17,0,17,10],[23,0,23,10],[26,0,26,10],[16,1,16,5],[11,6,16,10],[24,10,25,10],[11,1,11,5],[12,1,12,5],[13,1,13,5],[14,1,14,5],[15,1,15,5],[19,8,19,10]]}
[null,null,null,"Vicerrectoría de Investigaciones",null,null,null,null,null,"Fecha: 27/01/2020"]
[null,null,null,"FORMATO FORMALIZACIÓN Y ACTUALIZACIÓN SEMILLERO DE INVESTIGACIÓN \nVII - FT -014 UDES ",null,null,null,null,null,"Versión: 00"]
[]
["Fecha de diligenciamiento",null,null,"dd/mm/aaaa",null,null,null,"Semestre de formalización o actualización"]
["IDENTIFICACIÓN DEL SEMILLERO DE INVESTIGACIÓN"]
["Nombre del semillero",null,"Facutad","Campus","Grupo de Investigación","Fecha de creación",null,"Estudiantes activos",null,{"$f":"COUNTIF(K29:K78,\"Activo\")","v":1}]
[null,null,null,null,null,"mm/aaaa",null,"Estudiantes inactivos",null,{"$f":"COUNTIF(K30:K78,\"Inactivo\")","v":0}]
["Líneas de Investigación",null,1,2,3,4,5,6,7,8,9]
["Objetivos de Desarrollo Sostenible (ODS)"]
["Objetivo general del semillero"]
["Objetivos específicos",null,null,null,null,null,"Justificación"]
[1]
[2]
[3]
[4]
[5]
[6]
["IDENTIFICACIÓN DEL TUTOR DE SEMILLERO"]
["No.","Nombre","Documento de Identidad","Título profesional","Programa","Teléfono","e-mail institucional","Grupo de investigación","CvLac"]
[1]
[2]
[3]
[4]
["IDENTIFICACIÓN DEL ESTUDIANTE COORDINADOR DEL SEMILLERO"]
["No.","Nombre del estudiante","Tipo de Identificación","No. de identificación","Código estudiantil","Programa académico","e-mail","Teléfono","Fecha de vinculación","Estado"]
[1,null,null,null,null,null,null,null,null,"Activo"]
["ESTUDIANTES VINCULADOS AL SEMILLERO"]
["No.","Fase de formación","Nombre del estudiante","Tipo de Identificación","No. de identificación","Código estudiantil","Programa académico","e-mail","Teléfono","Fecha de vinculación","Estado"]
[1,null,{"$f":"B26","v":0},{"$f":"C26","v":0},{"$f":"D26","v":0},0,0,0,0,{"$f":"I26","v":"00:00:00"}]
[2,"3. Avanzada",null,null,null,null,null,null,null,null,"Activo"]
[3]
[4]
[5]
[6]
[7]

{"sheet":"Plan de trabajo anual semillero","index":2,"n_rows":34,"n_cols":54,"rows_kept":34,"cut":false,"hidden":false,"merged":[[2,29,2,32],[2,5,3,5],[27,0,27,52],[2,51,2,52],[2,53,3,53],[5,53,16,53],[4,0,4,53],[2,33,2,36],[2,6,3,6],[2,13,2,16],[2,7,2,8],[2,9,2,12],[2,0,3,0],[18,53,26,53],[23,51,23,52],[24,51,24,52],[0,0,1,2],[2,1,3,1],[2,2,3,2],[2,3,3,3],[2,4,3,4],[0,3,0,42],[1,3,1,42],[2,37,2,40],[2,41,2,44],[0,43,0,53],[1,43,1,53],[2,45,2,48],[2,49,2,50],[2,17,2,20],[2,21,2,24],[2,25,2,28],[17,9,17,48],[33,51,33,52],[28,51,28,52],[29,51,29,52],[30,51,30,52],[31,51,31,52],[32,51,32,52],[25,51,25,52],[26,51,26,52],[17,51,17,52],[18,51,18,52],[19,51,19,52],[20,51,20,52],[21,51,21,52],[22,51,22,52]]}
[null,null,null,"Vicerrectoría de Investigaciones",null,null,null,null,null,null,null,null,null,null,null,null,null,null,null,null,null,null,null,null,null,null,null,null,null,null,null,null,null,null,null,null,null,null,null,null,null,null,null,"Fecha: 27/01/2020"]
[null,null,null,"FORMATO PLAN DE TRABAJO DEL SEMILLERO DE INVESTIGACIÓN \nVII - FT - 014 UDES ",null,null,null,null,null,null,null,null,null,null,null,null,null,null,null,null,null,null,null,null,null,null,null,null,null,null,null,null,null,null,null,null,null,null,null,null,null,null,null,"Versión: 00"]
["No.","Para Fase 2. Actividad\nPara Fase 3. Tipología del producto","Descripción de la actividad o producto","Fecha","Para Fase 2. Tipo de soporte\nPara Fase 3. Producto según modelo de Minciencias","Nombre del soporte","Entrega de soportes a Vicerrectoría","Enero",null,"MES 1",null,null,null,"MES 2",null,null,null,"MES 3",null,null,null,"MES 4",null,null,null,"MES 5",null,null,null,"MES 6",null,null,null,"MES 7",null,null,null,"MES 8",null,null,null,"MES 9",null,null,null,"MES 10",null,null,null,"Diciembre",null,"¿La actividad planeada se realizó?",null,"Cumplimiento"]
[null,null,null,null,null,null,null,1,2,1,2,3,4,1,2,3,4,1,2,3,4,1,2,3,4,1,2,3,4,1,2,3,4,1,2,3,4,1,2,3,4,1,2,3,4,1,2,3,4,1,2,"Primer semestre","Segundo semestre"]
["Actividades para Fase 2. Formación especializada"]
[1,"Control de asistencia","Asistencia estudiantes a las temáticas presentadas para fase 2","05/05/2020\n10/11/2020","Hoja diligenciada \"Asistencia_Fase2\"","Gestión semilleros de investigación UDES","Final de cada semestre",null,null,null,null,null,null,null,null,null,null,null,null,null,null,null,null,null,null,null,null,null,null,null,null,null,null,null,null,null,null,null,null,null,null,null,null,null,null,null,null,null,null,null,null,null,null,{"$f":"COUNTIF((AZ6:BA17),\"SÍ\")/(COUNTA(C6:C17)*2)","v":0}]
[2,"Temática 1","Estadística y probabilidad. Parte 1","dd/mm/aaaa\ndd/mm/aaa","Presentaciones, hojas de asistencia, actas de reunión, etc.","Soportes Temática 1","Final de cada semestre"]
[3,"Temática 2","Estadística y probabilidad. Parte 2","dd/mm/aaaa\ndd/mm/aaaa","Presentaciones, hojas de asistencia, actas de reunión, etc.","Soportes Temática 2","Final de cada semestre"]
[4,"Temática 3","Modelamiento físico y mátemático","dd/mm/aaaa\ndd/mm/aaaa","Presentaciones, hojas de asistencia, actas de reunión, etc.","Soportes Temática 3","Final de cada semestre"]
[null,null,null,null,null,null,"Final de cada semestre"]
[null,null,null,null,null,null,"Final de cada semestre"]
[null,null,null,null,null,null,"Final de cada semestre"]
[null,null,null,null,null,null,"Final de cada semestre"]
[]
[]
[]
[]
["Actividades para Fase 3. Producción en la investigación",null,null,null,null,null,null,null,null,null,null,null,null,null,null,null,null,null,null,null,null,null,null,null,null,null,null,null,null,null,null,null,null,null,null,null,null,null,null,null,null,null,null,null,null,null,null,null,null,null,null,"Estado en que se encuentra la actividad"]
[1,"Gestión formación fase 3.","Actividades realizadas en la fase 3 de formación","30-05-2020\n30-11-2020","Hoja diligenciada \"Gestión_Fase3\"","Gestión semilleros de investigación UDES","Final de cada semestre",null,null,null,null,null,null,null,null,null,null,null,null,null,null,null,null,null,null,null,null,null,null,null,null,null,null,null,null,null,null,null,null,null,null,null,null,null,null,null,null,null,null,null,null,null,null,{"$f":"COUNTIF((AZ19:BA27),\"FINALIZADO\")/(COUNTA(C19:C27))","v":0}]
[2,null,null,"dd/mm/aaaa",null,"Producto 1","Final de cada semestre"]
[3,null,null,"dd/mm/aaaa",null,"producto 2","Final de cada semestre"]
[4]
[5]
[6]
[7]
[8]
[9]
["Actividades extras que no se contemplaron inicialmente en el plan"]
[10]
[11]
[12]
[13]
[14]
[15]

{"sheet":"Asistencia_Fase1","index":3,"n_rows":56,"n_cols":20,"rows_kept":56,"cut":false,"hidden":false,"merged":[[4,19,5,19],[4,1,5,1],[4,2,5,2],[3,0,3,1],[3,3,3,12],[3,13,3,17],[4,0,5,0],[4,3,4,17],[4,18,5,18],[2,0,2,1],[2,3,2,19],[0,0,1,1],[0,2,0,17],[0,18,0,19],[1,2,1,17],[1,18,1,19]]}
[null,null,"Vicerrectoría de Investigaciones",null,null,null,null,null,null,null,null,null,null,null,null,null,null,null,"Fecha: 27/01/2020"]
[null,null,"FORMATO APOYO CONTROL DE ASISTENCIA FORMACIÓN FASE 1\nVII - FT -014 UDES ",null,null,null,null,null,null,null,null,null,null,null,null,null,null,null,"Versión: 00"]
["Semestre"]
["Cantidad de temáticas vistas en Fase 1.",null,null,"Estudiantes aprobados fase 1",null,null,null,null,null,null,null,null,null,{"$f":"COUNTIF(T7:T56,\">=70%\")","v":0}]
["N°","Fase de formación","Estudiante","Temáticas contempladas en el plan de formación",null,null,null,null,null,null,null,null,null,null,null,null,null,null,"Total de asistencia","Porcentaje de participación"]
[null,null,null,1,2,3,4,5,6,7,8,9,10,11,12,13,14,15]
[{"$f":"Formalizacion_semillero!A29","v":1},null,null,null,null,null,null,null,null,null,null,null,null,null,null,null,null,null,{"$f":"COUNTA(D7:R7)","v":0},{"$f":"S7/$C$4","v":{"$error":"#DIV/0!"}}]
[{"$f":"Formalizacion_semillero!A30","v":2},null,null,null,null,null,null,null,null,null,null,null,null,null,null,null,null,null,{"$f":"COUNTA(D8:R8)","v":0},{"$f":"S8/$C$4","v":{"$error":"#DIV/0!"}}]
[{"$f":"Formalizacion_semillero!A31","v":3},null,null,null,null,null,null,null,null,null,null,null,null,null,null,null,null,null,0,{"$error":"#DIV/0!"}]
[{"$f":"Formalizacion_semillero!A32","v":4},null,null,null,null,null,null,null,null,null,null,null,null,null,null,null,null,null,0,{"$error":"#DIV/0!"}]
[{"$f":"Formalizacion_semillero!A33","v":5},null,null,null,null,null,null,null,null,null,null,null,null,null,null,null,null,null,0,{"$error":"#DIV/0!"}]
[{"$f":"Formalizacion_semillero!A34","v":6},null,null,null,null,null,null,null,null,null,null,null,null,null,null,null,null,null,0,{"$error":"#DIV/0!"}]
[{"$f":"Formalizacion_semillero!A35","v":7},null,null,null,null,null,null,null,null,null,null,null,null,null,null,null,null,null,0,{"$error":"#DIV/0!"}]
[{"$f":"Formalizacion_semillero!A36","v":0},null,null,null,null,null,null,null,null,null,null,null,null,null,null,null,null,null,0,{"$error":"#DIV/0!"}]
[{"$f":"Formalizacion_semillero!A37","v":0},null,null,null,null,null,null,null,null,null,null,null,null,null,null,null,null,null,0,{"$error":"#DIV/0!"}]
[{"$f":"Formalizacion_semillero!A38","v":0},null,null,null,null,null,null,null,null,null,null,null,null,null,null,null,null,null,0,{"$error":"#DIV/0!"}]
[{"$f":"Formalizacion_semillero!A39","v":0},null,null,null,null,null,null,null,null,null,null,null,null,null,null,null,null,null,0,{"$error":"#DIV/0!"}]
[{"$f":"Formalizacion_semillero!A40","v":0},null,null,null,null,null,null,null,null,null,null,null,null,null,null,null,null,null,0,{"$error":"#DIV/0!"}]
[{"$f":"Formalizacion_semillero!A41","v":0},null,null,null,null,null,null,null,null,null,null,null,null,null,null,null,null,null,0,{"$error":"#DIV/0!"}]
[{"$f":"Formalizacion_semillero!A42","v":0},null,null,null,null,null,null,null,null,null,null,null,null,null,null,null,null,null,0,{"$error":"#DIV/0!"}]
[{"$f":"Formalizacion_semillero!A43","v":0},null,null,null,null,null,null,null,null,null,null,null,null,null,null,null,null,null,0,{"$error":"#DIV/0!"}]
[{"$f":"Formalizacion_semillero!A44","v":0},null,null,null,null,null,null,null,null,null,null,null,null,null,null,null,null,null,0,{"$error":"#DIV/0!"}]
[{"$f":"Formalizacion_semillero!A45","v":0},null,null,null,null,null,null,null,null,null,null,null,null,null,null,null,null,null,0,{"$error":"#DIV/0!"}]
[{"$f":"Formalizacion_semillero!A46","v":0},null,null,null,null,null,null,null,null,null,null,null,null,null,null,null,null,null,0,{"$error":"#DIV/0!"}]
[{"$f":"Formalizacion_semillero!A47","v":0},null,null,null,null,null,null,null,null,null,null,null,null,null,null,null,null,null,0,{"$error":"#DIV/0!"}]
[{"$f":"Formalizacion_semillero!A48","v":0},null,null,null,null,null,null,null,null,null,null,null,null,null,null,null,null,null,0,{"$error":"#DIV/0!"}]
[{"$f":"Formalizacion_semillero!A49","v":0},null,null,null,null,null,null,null,null,null,null,null,null,null,null,null,null,null,0,{"$error":"#DIV/0!"}]
[{"$f":"Formalizacion_semillero!A50","v":0},null,null,null,null,null,null,null,null,null,null,null,null,null,null,null,null,null,0,{"$error":"#DIV/0!"}]
[{"$f":"Formalizacion_semillero!A51","v":0},null,null,null,null,null,null,null,null,null,null,null,null,null,null,null,null,null,0,{"$error":"#DIV/0!"}]
[{"$f":"Formalizacion_semillero!A52","v":0},null,null,null,null,null,null,null,null,null,null,null,null,null,null,null,null,null,0,{"$error":"#DIV/0!"}]
[{"$f":"Formalizacion_semillero!A53","v":0},null,null,null,null,null,null,null,null,null,null,null,null,null,null,null,null,null,0,{"$error":"#DIV/0!"}]
[{"$f":"Formalizacion_semillero!A54","v":0},null,null,null,null,null,null,null,null,null,null,null,null,null,null,null,null,null,0,{"$error":"#DIV/0!"}]
[{"$f":"Formalizacion_semillero!A55","v":0},null,null,null,null,null,null,null,null,null,null,null,null,null,null,null,null,null,0,{"$error":"#DIV/0!"}]
[{"$f":"Formalizacion_semillero!A56","v":0},null,null,null,null,null,null,null,null,null,null,null,null,null,null,null,null,null,0,{"$error":"#DIV/0!"}]
[{"$f":"Formalizacion_semillero!A57","v":0},null,null,null,null,null,null,null,null,null,null,null,null,null,null,null,null,null,0,{"$error":"#DIV/0!"}]
[{"$f":"Formalizacion_semillero!A58","v":0},null,null,null,null,null,null,null,null,null,null,null,null,null,null,null,null,null,0,{"$error":"#DIV/0!"}]
[{"$f":"Formalizacion_semillero!A59","v":0},null,null,null,null,null,null,null,null,null,null,null,null,null,null,null,null,null,0,{"$error":"#DIV/0!"}]
[{"$f":"Formalizacion_semillero!A60","v":0},null,null,null,null,null,null,null,null,null,null,null,null,null,null,null,null,null,0,{"$error":"#DIV/0!"}]
[{"$f":"Formalizacion_semillero!A61","v":0},null,null,null,null,null,null,null,null,null,null,null,null,null,null,null,null,null,0,{"$error":"#DIV/0!"}]
[{"$f":"Formalizacion_semillero!A62","v":0},null,null,null,null,null,null,null,null,null,null,null,null,null,null,null,null,null,0,{"$error":"#DIV/0!"}]
[{"$f":"Formalizacion_semillero!A63","v":0},null,null,null,null,null,null,null,null,null,null,null,null,null,null,null,null,null,0,{"$error":"#DIV/0!"}]
[{"$f":"Formalizacion_semillero!A64","v":0},null,null,null,null,null,null,null,null,null,null,null,null,null,null,null,null,null,0,{"$error":"#DIV/0!"}]
[{"$f":"Formalizacion_semillero!A65","v":0},null,null,null,null,null,null,null,null,null,null,null,null,null,null,null,null,null,0,{"$error":"#DIV/0!"}]
[{"$f":"Formalizacion_semillero!A66","v":0},null,null,null,null,null,null,null,null,null,null,null,null,null,null,null,null,null,0,{"$error":"#DIV/0!"}]
[{"$f":"Formalizacion_semillero!A67","v":0},null,null,null,null,null,null,null,null,null,null,null,null,null,null,null,null,null,0,{"$error":"#DIV/0!"}]
[{"$f":"Formalizacion_semillero!A68","v":0},null,null,null,null,null,null,null,null,null,null,null,null,null,null,null,null,null,0,{"$error":"#DIV/0!"}]
[{"$f":"Formalizacion_semillero!A69","v":0},null,null,null,null,null,null,null,null,null,null,null,null,null,null,null,null,null,0,{"$error":"#DIV/0!"}]
[{"$f":"Formalizacion_semillero!A70","v":0},null,null,null,null,null,null,null,null,null,null,null,null,null,null,null,null,null,0,{"$error":"#DIV/0!"}]
[{"$f":"Formalizacion_semillero!A71","v":0},null,null,null,null,null,null,null,null,null,null,null,null,null,null,null,null,null,0,{"$error":"#DIV/0!"}]
[{"$f":"Formalizacion_semillero!A72","v":0},null,null,null,null,null,null,null,null,null,null,null,null,null,null,null,null,null,0,{"$error":"#DIV/0!"}]
[{"$f":"Formalizacion_semillero!A73","v":0},null,null,null,null,null,null,null,null,null,null,null,null,null,null,null,null,null,0,{"$error":"#DIV/0!"}]
[{"$f":"Formalizacion_semillero!A74","v":0},null,null,null,null,null,null,null,null,null,null,null,null,null,null,null,null,null,0,{"$error":"#DIV/0!"}]
[{"$f":"Formalizacion_semillero!A75","v":0},null,null,null,null,null,null,null,null,null,null,null,null,null,null,null,null,null,0,{"$error":"#DIV/0!"}]
[{"$f":"Formalizacion_semillero!A76","v":0},null,null,null,null,null,null,null,null,null,null,null,null,null,null,null,null,null,0,{"$error":"#DIV/0!"}]
[{"$f":"Formalizacion_semillero!A77","v":0},null,null,null,null,null,null,null,null,null,null,null,null,null,null,null,null,null,0,{"$error":"#DIV/0!"}]
[{"$f":"Formalizacion_semillero!A78","v":0},null,null,null,null,null,null,null,null,null,null,null,null,null,null,null,null,null,0,{"$error":"#DIV/0!"}]

{"sheet":"Asistencia_Fase2","index":4,"n_rows":56,"n_cols":22,"rows_kept":56,"cut":false,"hidden":false,"merged":[[2,0,2,1],[3,3,3,12],[4,0,5,0],[3,0,3,1],[0,0,1,1],[4,3,4,17],[3,13,3,17],[4,20,5,20],[4,21,5,21],[2,3,2,21],[0,2,0,19],[1,2,1,19],[3,18,3,21],[4,18,5,18],[4,19,5,19],[0,20,0,21],[1,20,1,21]]}
[null,null,"Vicerrectoría de Investigaciones",null,null,null,null,null,null,null,null,null,null,null,null,null,null,null,null,null,"Fecha: 27/01/2020"]
[null,null,"FORMATO CONTROL DE ASISTENCIA FORMACIÓN FASE 2\nVII - FT -014 UDES ",null,null,null,null,null,null,null,null,null,null,null,null,null,null,null,null,null,"Versión: 00"]
["Semestre"]
["Cantidad de temáticas vistas en Fase 2.",null,null,"Estudiantes aprobados fase 2",null,null,null,null,null,null,null,null,null,{"$f":"COUNTIF(T7:T56,\">=70%\")","v":0}]
["N°",null,null,"Temáticas contempladas en el plan de formación",null,null,null,null,null,null,null,null,null,null,null,null,null,null,"Total de asistencia","Porcentaje de participación","¿El estudiante desarrolló las actividades propuestas?","Si su respuesta es \"NO\", justificar"]
[null,"Fase de formación","Estudiante",1,2,3,4,5,6,7,8,9,10,11,12,13,14,15]
[{"$f":"Formalizacion_semillero!A29","v":1},null,null,null,null,null,null,null,null,null,null,null,null,null,null,null,null,null,{"$f":"COUNTA(D7:R7)","v":0},{"$f":"IF(B7=\"2. Especializada\",(S7/$C$4),IF(B7=\"3. Avanzada\",(S7/$C$4),\"NA\"))","v":"NA"}]
[{"$f":"Formalizacion_semillero!A30","v":2},null,null,null,null,null,null,null,null,null,null,null,null,null,null,null,null,null,0,{"$f":"IF(B8=\"2. Especializada\",(S8/$C$4),IF(B8=\"3. Avanzada\",(S8/$C$4),\"NA\"))","v":"NA"}]
[{"$f":"Formalizacion_semillero!A31","v":3},null,null,null,null,null,null,null,null,null,null,null,null,null,null,null,null,null,0,"NA"]
[{"$f":"Formalizacion_semillero!A32","v":4},null,null,null,null,null,null,null,null,null,null,null,null,null,null,null,null,null,0,"NA"]
[{"$f":"Formalizacion_semillero!A33","v":5},null,null,null,null,null,null,null,null,null,null,null,null,null,null,null,null,null,0,"NA"]
[{"$f":"Formalizacion_semillero!A34","v":6},null,null,null,null,null,null,null,null,null,null,null,null,null,null,null,null,null,0,"NA"]
[{"$f":"Formalizacion_semillero!A35","v":7},null,null,null,null,null,null,null,null,null,null,null,null,null,null,null,null,null,0,"NA"]
[{"$f":"Formalizacion_semillero!A36","v":0},null,null,null,null,null,null,null,null,null,null,null,null,null,null,null,null,null,0,"NA"]
[{"$f":"Formalizacion_semillero!A37","v":0},null,null,null,null,null,null,null,null,null,null,null,null,null,null,null,null,null,0,"NA"]
[{"$f":"Formalizacion_semillero!A38","v":0},null,null,null,null,null,null,null,null,null,null,null,null,null,null,null,null,null,0,"NA"]
[{"$f":"Formalizacion_semillero!A39","v":0},null,null,null,null,null,null,null,null,null,null,null,null,null,null,null,null,null,0,"NA"]
[{"$f":"Formalizacion_semillero!A40","v":0},null,null,null,null,null,null,null,null,null,null,null,null,null,null,null,null,null,0,"NA"]
[{"$f":"Formalizacion_semillero!A41","v":0},null,null,null,null,null,null,null,null,null,null,null,null,null,null,null,null,null,0,"NA"]
[{"$f":"Formalizacion_semillero!A42","v":0},null,null,null,null,null,null,null,null,null,null,null,null,null,null,null,null,null,0,"NA"]
[{"$f":"Formalizacion_semillero!A43","v":0},null,null,null,null,null,null,null,null,null,null,null,null,null,null,null,null,null,0,"NA"]
[{"$f":"Formalizacion_semillero!A44","v":0},null,null,null,null,null,null,null,null,null,null,null,null,null,null,null,null,null,0,"NA"]
[{"$f":"Formalizacion_semillero!A45","v":0},null,null,null,null,null,null,null,null,null,null,null,null,null,null,null,null,null,0,"NA"]
[{"$f":"Formalizacion_semillero!A46","v":0},null,null,null,null,null,null,null,null,null,null,null,null,null,null,null,null,null,0,"NA"]
[{"$f":"Formalizacion_semillero!A47","v":0},null,null,null,null,null,null,null,null,null,null,null,null,null,null,null,null,null,0,"NA"]
[{"$f":"Formalizacion_semillero!A48","v":0},null,null,null,null,null,null,null,null,null,null,null,null,null,null,null,null,null,0,"NA"]
[{"$f":"Formalizacion_semillero!A49","v":0},null,null,null,null,null,null,null,null,null,null,null,null,null,null,null,null,null,0,"NA"]
[{"$f":"Formalizacion_semillero!A50","v":0},null,null,null,null,null,null,null,null,null,null,null,null,null,null,null,null,null,0,"NA"]
[{"$f":"Formalizacion_semillero!A51","v":0},null,null,null,null,null,null,null,null,null,null,null,null,null,null,null,null,null,0,"NA"]
[{"$f":"Formalizacion_semillero!A52","v":0},null,null,null,null,null,null,null,null,null,null,null,null,null,null,null,null,null,0,"NA"]
[{"$f":"Formalizacion_semillero!A53","v":0},null,null,null,null,null,null,null,null,null,null,null,null,null,null,null,null,null,0,"NA"]
[{"$f":"Formalizacion_semillero!A54","v":0},null,null,null,null,null,null,null,null,null,null,null,null,null,null,null,null,null,0,"NA"]
[{"$f":"Formalizacion_semillero!A55","v":0},null,null,null,null,null,null,null,null,null,null,null,null,null,null,null,null,null,0,"NA"]
[{"$f":"Formalizacion_semillero!A56","v":0},null,null,null,null,null,null,null,null,null,null,null,null,null,null,null,null,null,0,"NA"]
[{"$f":"Formalizacion_semillero!A57","v":0},null,null,null,null,null,null,null,null,null,null,null,null,null,null,null,null,null,0,"NA"]
[{"$f":"Formalizacion_semillero!A58","v":0},null,null,null,null,null,null,null,null,null,null,null,null,null,null,null,null,null,0,"NA"]
[{"$f":"Formalizacion_semillero!A59","v":0},null,null,null,null,null,null,null,null,null,null,null,null,null,null,null,null,null,0,"NA"]
[{"$f":"Formalizacion_semillero!A60","v":0},null,null,null,null,null,null,null,null,null,null,null,null,null,null,null,null,null,0,"NA"]
[{"$f":"Formalizacion_semillero!A61","v":0},null,null,null,null,null,null,null,null,null,null,null,null,null,null,null,null,null,0,"NA"]
[{"$f":"Formalizacion_semillero!A62","v":0},null,null,null,null,null,null,null,null,null,null,null,null,null,null,null,null,null,0,"NA"]
[{"$f":"Formalizacion_semillero!A63","v":0},null,null,null,null,null,null,null,null,null,null,null,null,null,null,null,null,null,0,"NA"]
[{"$f":"Formalizacion_semillero!A64","v":0},null,null,null,null,null,null,null,null,null,null,null,null,null,null,null,null,null,0,"NA"]
[{"$f":"Formalizacion_semillero!A65","v":0},null,null,null,null,null,null,null,null,null,null,null,null,null,null,null,null,null,0,"NA"]
[{"$f":"Formalizacion_semillero!A66","v":0},null,null,null,null,null,null,null,null,null,null,null,null,null,null,null,null,null,0,"NA"]
[{"$f":"Formalizacion_semillero!A67","v":0},null,null,null,null,null,null,null,null,null,null,null,null,null,null,null,null,null,0,"NA"]
[{"$f":"Formalizacion_semillero!A68","v":0},null,null,null,null,null,null,null,null,null,null,null,null,null,null,null,null,null,0,"NA"]
[{"$f":"Formalizacion_semillero!A69","v":0},null,null,null,null,null,null,null,null,null,null,null,null,null,null,null,null,null,0,"NA"]
[{"$f":"Formalizacion_semillero!A70","v":0},null,null,null,null,null,null,null,null,null,null,null,null,null,null,null,null,null,0,"NA"]
[{"$f":"Formalizacion_semillero!A71","v":0},null,null,null,null,null,null,null,null,null,null,null,null,null,null,null,null,null,0,"NA"]
[{"$f":"Formalizacion_semillero!A72","v":0},null,null,null,null,null,null,null,null,null,null,null,null,null,null,null,null,null,0,"NA"]
[{"$f":"Formalizacion_semillero!A73","v":0},null,null,null,null,null,null,null,null,null,null,null,null,null,null,null,null,null,0,"NA"]
[{"$f":"Formalizacion_semillero!A74","v":0},null,null,null,null,null,null,null,null,null,null,null,null,null,null,null,null,null,0,"NA"]
[{"$f":"Formalizacion_semillero!A75","v":0},null,null,null,null,null,null,null,null,null,null,null,null,null,null,null,null,null,0,"NA"]
[{"$f":"Formalizacion_semillero!A76","v":0},null,null,null,null,null,null,null,null,null,null,null,null,null,null,null,null,null,0,"NA"]
[{"$f":"Formalizacion_semillero!A77","v":0},null,null,null,null,null,null,null,null,null,null,null,null,null,null,null,null,null,0,"NA"]
[{"$f":"Formalizacion_semillero!A78","v":0},null,null,null,null,null,null,null,null,null,null,null,null,null,null,null,null,null,0,"NA"]

{"sheet":"Gestion_Fase3","index":5,"n_rows":19,"n_cols":19,"rows_kept":19,"cut":false,"hidden":false,"merged":[[3,24,4,24],[3,25,4,25],[0,2,0,13],[1,2,1,13],[0,0,1,1],[0,14,0,15],[1,14,1,15]]}
[null,null,"Vicerrectoría de Investigaciones",null,null,null,null,null,null,null,null,null,null,null,"Fecha: 27/01/2020"]
[null,null,"GESTIÓN FASE 3\nVII - FT -014 UDES ",null,null,null,null,null,null,null,null,null,null,null,"Versión: 00"]
[]
["N°","Tipología del Producto","Producto según modelo de Minciencias","Nombre del producto asociado a la actividad","Estado del producto","Soporte del producto","Estudiante 1 vinculado","Estudiante 2 vinculado","Estudiante 3 vinculado","Estudiante 4 vinculado","Estudiante 5 vinculado","Estudiante 6 vinculado","Estudiante 7 vinculado","Estudiante 8 vinculado","Estudiante 9 vinculado","Estudiante 10 vinculado","Total estudiantes vinculados",null,"Estudiantes Fase 3"]
[1,{"$f":"'Plan de trabajo anual semillero'!B20","v":0},{"$f":"'Plan de trabajo anual semillero'!E20","v":0},null,{"$f":"'Plan de trabajo anual semillero'!AZ20","v":0},{"$f":"'Plan de trabajo anual semillero'!F20","v":"Producto 1"},null,null,null,null,null,null,null,null,null,null,{"$f":"COUNTA(G5:P5)","v":0}]
[2,{"$f":"'Plan de trabajo anual semillero'!B21","v":0},{"$f":"'Plan de trabajo anual semillero'!E21","v":0},null,{"$f":"'Plan de trabajo anual semillero'!AZ21","v":0},{"$f":"'Plan de trabajo anual semillero'!F21","v":"producto 2"},null,null,null,null,null,null,null,null,null,null,{"$f":"COUNTA(G6:P6)","v":0}]
[3,{"$f":"'Plan de trabajo anual semillero'!B22","v":0},{"$f":"'Plan de trabajo anual semillero'!E22","v":0},null,{"$f":"'Plan de trabajo anual semillero'!AZ22","v":0},{"$f":"'Plan de trabajo anual semillero'!F22","v":0},null,null,null,null,null,null,null,null,null,null,0]
[4,{"$f":"'Plan de trabajo anual semillero'!B23","v":0},{"$f":"'Plan de trabajo anual semillero'!E23","v":0},null,{"$f":"'Plan de trabajo anual semillero'!AZ23","v":0},{"$f":"'Plan de trabajo anual semillero'!F23","v":0},null,null,null,null,null,null,null,null,null,null,0]
[5,{"$f":"'Plan de trabajo anual semillero'!B24","v":0},{"$f":"'Plan de trabajo anual semillero'!E24","v":0},null,{"$f":"'Plan de trabajo anual semillero'!AZ24","v":0},{"$f":"'Plan de trabajo anual semillero'!F24","v":0},null,null,null,null,null,null,null,null,null,null,0]
[6,{"$f":"'Plan de trabajo anual semillero'!B25","v":0},{"$f":"'Plan de trabajo anual semillero'!E25","v":0},null,{"$f":"'Plan de trabajo anual semillero'!AZ25","v":0},{"$f":"'Plan de trabajo anual semillero'!F25","v":0},null,null,null,null,null,null,null,null,null,null,0]
[7,{"$f":"'Plan de trabajo anual semillero'!B26","v":0},{"$f":"'Plan de trabajo anual semillero'!E26","v":0},null,{"$f":"'Plan de trabajo anual semillero'!AZ26","v":0},{"$f":"'Plan de trabajo anual semillero'!F26","v":0},null,null,null,null,null,null,null,null,null,null,0]
[8,{"$f":"'Plan de trabajo anual semillero'!B27","v":0},{"$f":"'Plan de trabajo anual semillero'!E27","v":0},null,{"$f":"'Plan de trabajo anual semillero'!AZ27","v":0},{"$f":"'Plan de trabajo anual semillero'!F27","v":0},null,null,null,null,null,null,null,null,null,null,0]
["Otras actividades extras desarrolladas no contempladas en el plan de trabajo",null,null,null,null,null,null,null,null,null,null,null,null,null,null,null,0]
[9,{"$f":"'Plan de trabajo anual semillero'!B29","v":0},{"$f":"'Plan de trabajo anual semillero'!E29","v":0},null,{"$f":"'Plan de trabajo anual semillero'!AZ29","v":0},{"$f":"'Plan de trabajo anual semillero'!F29","v":0},null,null,null,null,null,null,null,null,null,null,0]
[10,{"$f":"'Plan de trabajo anual semillero'!B30","v":0},{"$f":"'Plan de trabajo anual semillero'!E30","v":0},null,{"$f":"'Plan de trabajo anual semillero'!AZ30","v":0},{"$f":"'Plan de trabajo anual semillero'!F30","v":0},null,null,null,null,null,null,null,null,null,null,0]
[11,{"$f":"'Plan de trabajo anual semillero'!B31","v":0},{"$f":"'Plan de trabajo anual semillero'!E31","v":0},null,{"$f":"'Plan de trabajo anual semillero'!AZ31","v":0},{"$f":"'Plan de trabajo anual semillero'!F31","v":0},null,null,null,null,null,null,null,null,null,null,0]
[12,{"$f":"'Plan de trabajo anual semillero'!B32","v":0},{"$f":"'Plan de trabajo anual semillero'!E32","v":0},null,{"$f":"'Plan de trabajo anual semillero'!AZ32","v":0},{"$f":"'Plan de trabajo anual semillero'!F32","v":0},null,null,null,null,null,null,null,null,null,null,0]
[13,{"$f":"'Plan de trabajo anual semillero'!B33","v":0},{"$f":"'Plan de trabajo anual semillero'!E33","v":0},null,{"$f":"'Plan de trabajo anual semillero'!AZ33","v":0},{"$f":"'Plan de trabajo anual semillero'!F33","v":0},null,null,null,null,null,null,null,null,null,null,0]
[14,{"$f":"'Plan de trabajo anual semillero'!B34","v":0},{"$f":"'Plan de trabajo anual semillero'!E34","v":0},null,{"$f":"'Plan de trabajo anual semillero'!AZ34","v":0},{"$f":"'Plan de trabajo anual semillero'!F34","v":0},null,null,null,null,null,null,null,null,null,null,0]

{"sheet":"INFORME SEMILLERO","index":6,"n_rows":15,"n_cols":6,"rows_kept":15,"cut":false,"hidden":false,"merged":[[0,4,0,5],[1,1,1,2],[2,1,2,2],[3,1,3,2],[4,0,4,2],[0,0,0,2]]}
["INFORME GESTIÓN DEL SEMILLERO DE INVESTIGACIÓN",null,null,null,"Categoría del Semillero de Investigación\nDiligenciar al finalizar la gestión del plan de trabajo anual"]
["Semillero de investigación",{"$f":"Formalizacion_semillero!A7","v":0},null,null,null,"Cantidad estudiantes activos"]
["Facultad",{"$f":"Formalizacion_semillero!C7","v":0},null,null,"Inicio plan anual"]
["Grupo de Investigación",{"$f":"Formalizacion_semillero!E7","v":0},null,null,"Final plan anual",{"$f":"COUNTIFS(Formalizacion_semillero!C29:C80,\"<>\",Formalizacion_semillero!K29:K80,\"Activo\")","v":0}]
[null,null,null,null,"Tasa de crecimiento",{"$f":"(F4-F3)/F3","v":{"$error":"#DIV/0!"}}]
[null,"Estudiantes activos","Estudiantes inactivos",null,"¿Cumplimiento fase 2 y 3 mayor o igual al 80%?",{"$f":"IF(AND(C12>=80%,C13>=80%),\"SÍ\",\"NO\")","v":"NO"}]
["Fase 1",{"$f":"COUNTIFS(Formalizacion_semillero!B29:B80,\"1. Básica\",Formalizacion_semillero!K29:K80,\"Activo\")","v":0},{"$f":"COUNTIFS(Formalizacion_semillero!C29:C80,\"1. Básica\",Formalizacion_semillero!L29:L80,\"Inactivo\")","v":0},null,"¿Tiene productos de investigación y/o desarrolló otras actividades en fase 3?",{"$f":"IF(A16<>\"\",\"SÍ\",\"NO\")","v":"NO"}]
["Fase 2",{"$f":"COUNTIFS(Formalizacion_semillero!B29:B80,\"2. Especializada\",Formalizacion_semillero!K29:K80,\"Activo\")","v":0},{"$f":"COUNTIFS(Formalizacion_semillero!C30:C79,\"2. Especializada\",Formalizacion_semillero!L30:L79,\"Inactivo\")","v":0},null,"¿Durante el año, presentó ponencia o póster en evento científico?",{"$f":"IF(AND(A16=\"Circulación de conocimiento especializado (incluye eventos científicos)\",B16=\"Finalizado\"),\"SÍ\",IF(AND(A17=\"Circulación de conocimiento especializado (incluye eventos científicos)\",B17=\"Finalizado\"),\"Sí\",IF(AND(A18=\"Circulación de conocimiento especializado (incluye eventos científicos)\",B18=\"Finalizado\"),\"SÍ\",IF(AND(A19=\"Circulación de conocimiento especializado (incluye eventos científicos)\",B19=\"Finalizado\"),\"SÍ\",IF(AND(A20=\"Circulación de conocimiento especializado (incluye eventos científicos)\",B20=\"Finalizado\"),\"SÍ\",IF(AND(A21=\"Circulación de conocimiento especializado (incluye eventos científicos)\",B21=\"Finalizado\"),\"SÍ\",IF(AND(A22=\"Circulación de conocimiento especializado (incluye eventos científicos)\",B22=\"Finalizado\"),\"SÍ\",IF(AND(A23=\"Circulación de conocimiento especializado (incluye eventos científicos)\",B23=\"Finalizado\"),\"SÍ\",IF(AND(A24=\"Circulación de conocimiento especializado (incluye eventos científicos)\",B24=\"Finalizado\"),\"SÍ\",IF(AND(A25=\"Circulación de conocimiento especializado (incluye eventos científicos)\",B25=\"Finalizado\"),\"SÍ\",IF(AND(A26=\"Circulación de conocimiento especializado (incluye eventos científicos)\",B26=\"Finalizado\"),\"SÍ\",IF(AND(A27=\"Circulación de conocimiento especializado (incluye eventos científicos)\",B27=\"Finalizado\"),\"SÍ\",\"NO\"))))))))))))","v":"NO"}]
["Fase 3",{"$f":"COUNTIFS(Formalizacion_semillero!B29:B80,\"3. Avanzada\",Formalizacion_semillero!K29:K80,\"Activo\")","v":1},{"$f":"COUNTIFS(Formalizacion_semillero!B29:B80,\"3. Avanzada\",Formalizacion_semillero!K29:K80,\"Inactivo\")","v":0},null,"En la ventana de los últimos dos años, ha desarrollado productos de generación de nuevo conocimiento y/o desarrollo tecnológico?"]
["TOTAL ESTUDIANTES",{"$f":"SUM(B7:B9)","v":1},{"$f":"SUM(C7:C9)","v":0},null,"Categoría del Semillero",{"$f":"IF(AND((F5>=0%),(F6=\"SÍ\"),(F7=\"SÍ\"),(F9=\"NO\")),\"Semillero en consolidación\",IF(AND((F5>=0%),(F6=\"SÍ\"),(F7=\"SÍ\"),(F8=\"SÍ\"),(F9=\"SÍ\")),\"Semillero consolidado\",\"Semillero en formación\"))","v":{"$error":"#DIV/0!"}}]
["FASES","# ACTIVIDADES PLANTEADAS","CUMPLIMIENTO"]
["FASE 2",{"$f":"COUNTA('Plan de trabajo anual semillero'!B6:B17)","v":4},{"$f":"'Plan de trabajo anual semillero'!BB6","v":0}]
["FASE 3",{"$f":"COUNTA('Plan de trabajo anual semillero'!B19:B27)","v":1},{"$f":"'Plan de trabajo anual semillero'!BB19","v":0}]
[null,"Estudiantes en fase 3 vinculados a productos",{"$f":"(SUMPRODUCT((Gestion_Fase3!$G$5:$P$19<>\"\")*1,1/COUNTIF(Gestion_Fase3!$G$5:$P$19,Gestion_Fase3!$G$5:$P$19&\"\")))/COUNTA(Gestion_Fase3!S5:S19)","v":{"$error":"#DIV/0!"}}]
["Producto según modelo de Minciencias","Estado","Estudiantes vinculados"]